Cogmind - Beta 15 @@@ ROGUE MODE // 2025.10.02 @ 21:57:49 Player: Grey Result: Destroyed by G-47 Trooper with Particle Gun Performance ------------- Evolutions (0) 0 Regions Visited (2) 400 Robots Destroyed (22) 110 Value Destroyed (469) 469 Prototype IDs (0) 0 Alien Tech Used (0) 0 Bonus (0) 0 TOTAL SCORE: 979 Bonus ------- None Cogmind --------- Core Integrity 0/250 Matter 223/300 Energy 260/265 System Corruption 0% Temperature Cool (9) Movement Flying (357) Ox4 Location -10/Mines Parts ------- > --- POWER (1) -------- Improved Ion Engine > --- PROPULSION (2) --- Flight Unit Flight Unit > --- UTILITY (2) ------ Large Storage Unit > --- WEAPON (2) ------- Heavy Assault Rifle Makeshift Axe > --- INVENTORY (15) --- Ion Engine Ion Engine Improved Ion Engine Targeting Computer Utility Shielding Light Armor Plating Mining Laser Peak State ------------ > --- POWER ------------ Improved Ion Engine > --- PROPULSION ------- Light Treads Light Treads > --- UTILITY ---------- Small Storage Unit Light Armor Plating > --- WEAPON ----------- Light Assault Rifle Makeshift Axe > --- INVENTORY -------- Ion Engine Ion Engine Large Storage Unit Utility Shielding Assault Rifle Light Assault Rifle Heavy Assault Rifle Rocket Launcher [Rating: 12] Favorites ----------- Power Ion Engine Engine Ion Engine Propulsion Light Treads Treads Light Treads Flight Unit Flight Unit Utility Small Storage Unit Storage Small Storage Unit Protection Light Armor Plating Weapon Light Assault Rifle Ballistic Gun Light Assault Rifle Launcher Rocket Launcher Slashing Weapon Makeshift Axe Build | -11 -10 -10 ------- Run | Yrd Mat Min Slots Evolved . | . . . Power . | . . . Propulsion . | . . . Utility . | . . . Weapon . | . . . Parts Attached 19 | 5 3 11 Power 5 | 1 2 2 Engine 5 | 1 2 2 Core . | . . . Reactor . | . . . Propulsion 4 | 2 . 2 Treads 2 | 2 . . Leg . | . . . Wheel . | . . . Hover . | . . . Flight 2 | . . 2 Utility 4 | 1 . 3 Device . | . . . Storage 2 | 1 . 1 Processor . | . . . Hackware . | . . . Protection 2 | . . 2 Artifact . | . . . Weapon 6 | 1 1 4 Energy Gun . | . . . Energy Cannon . | . . . Ballistic Gun 4 | 1 1 2 Ballistic Cannon . | . . . Launcher 1 | . . 1 Special Weapon . | . . . Impact Weapon . | . . . Slashing Weapon 1 | . . 1 Piercing Weapon . | . . . Special Melee Weapon . | . . . Unidentified Prototypes . | . . . Parts Lost 4 | . . 4 Power . | . . . Propulsion 2 | . . 2 Utility 1 | . . 1 Weapon 1 | . . 1 Highest Loss Streak 3 | . . 3 To Critical Strikes . | . . . Average Backups 5 | 1 1 6 Power 1 | . . 1 Propulsion . | . . . Utility 1 | . . 2 Weapon 1 | . . 2 Tool/Special . | . . . Unused Backups 5 | . . 5 Power 1 | . . 1 Propulsion . | . . . Utility 2 | . . 2 Weapon 2 | . . 2 Tool/Special . | . . . Average Slot Usage (%) 86 | . 79 88 Engine 14 | . 14 14 Treads 25 | . 28 25 Flight 1 | . . 1 Storage 14 | . 14 14 Protection 3 | . . 4 Ballistic Gun 21 | . 22 21 Slashing Weapon 4 | . . 5 Peak Build Rating 12 | 5 6 12 Average Rating 7 | 3 5 8 On Entrance 3 | . 5 6 Naked Turns . | . . . Heaviest Build 34 | 12 13 34 Greatest Support 40 | 40 40 40 Greatest Overweight (x) 10 | . . 10 Average Overweight (x) . | . . . Largest Inventory Capacity 15 | 8 8 15 Average Capacity 9 | 6 8 10 Most Carried 9 | 4 3 9 Average Carried 5 | 1 1 6 Final Capacity 15 | 8 8 15 Final Carried 7 | 1 3 7 Class Distribution -------------------- 95% | Mutant 4% | Scavenger-Mutant Dominant Class ---------------- Mutant | -10/Materials Mutant | -10/Mines Resources | -11 -10 -10 ----------- Run | Yrd Mat Min Matter Collected 540 | 232 77 231 Remotely . | . . . Salvage Created 535 | . 117 418 Parts 42 | . 10 32 Haulers Intercepted . | . . . Recyclers Shooed . | . . . Parts Field Recycled . | . . . Retrieved Matter . | . . . Parts Self-Destructed . | . . . Prevented . | . . . Kills | -11 -10 -10 ------- Run | Yrd Mat Min Combat Hostiles Destroyed 22 | . 5 17 Melee 5 | . . 5 Guns 14 | . 5 9 AOE 3 | . . 3 Classes Destroyed 5 | . 2 3 Worker 1 | . . 1 Swarmer 12 | . 3 9 Grunt 7 | . 2 5 Sentry 2 | . . 2 Assembled 1 | . . 1 Best Kill Streak 4 | . 2 4 Combat Bots Only 3 | . 2 3 Max Kills in Single Turn 2 | . 1 2 Gunslinging . | . . . Exploded 2 | . . 2 Melee 1 | . . 1 Uniques/NPCs Destroyed . | . . . Combat | -11 -10 -10 -------- Run | Yrd Mat Min Hostile Shots Fired 136 | . 26 110 Missed 39 | . 8 31 Hits 97 | . 18 79 Melee 2 | . . 2 Projectile 95 | . 18 77 Critical Strikes 1 | . . 1 Damage Taken 1082 | . 171 911 Core 254 | . 16 238 Absorbed by Shields . | . . . Core Remaining (%) 100 | 100 . . Volleys Fired 60 | . 18 42 Largest 2 | . 2 2 Hottest 40 | . 40 40 Shots Fired 91 | . 30 61 Gun 85 | . 30 55 Cannon . | . . . Launcher 6 | . . 6 Special . | . . . Kinetic 85 | . 30 55 Thermal . | . . . Explosive 6 | . . 6 Electromagnetic . | . . . Robot Hit Streak 8 | . 6 8 Robot Miss Streak 4 | . 3 4 Penetration Max . | . . . Secondary Targets 1 | . . 1 Max Gunslinging Chain 1 | . . 1 Shots Hit Robots 60 | . 18 42 Core Hits 28 | . 7 21 Critical Kills . | . . . Critical Parts Destroyed . | . . . Critical Strikes 1 | . . 1 Sever 1 | . . 1 Melee Attacks 18 | . . 18 Impact . | . . . Slashing 18 | . . 18 Piercing . | . . . Sneak Attacks . | . . . Combat Hostiles . | . . . Follow-up Attacks . | . . . Damage Inflicted 1212 | . 196 1016 Guns 537 | . 196 341 Cannons . | . . . Explosions 340 | . . 340 Melee 335 | . . 335 Ramming . | . . . Kinetic 537 | . 196 341 Thermal . | . . . Explosive 340 | . . 340 Electromagnetic . | . . . Impact . | . . . Slashing 335 | . . 335 Piercing . | . . . Highest Corruption . | . . . Average Corruption . | . . . Corruption Purged . | . . . Corruption Blocked . | . . . Overload Shots . | . . . Overflow Damage 10 | . . 10 Projectiles . | . . . Explosions 10 | . . 10 Melee . | . . . Knockbacks . | . . . Impact . | . . . Kinetic . | . . . Secondary . | . . . Self-Inflicted Damage 85 | . . 85 Shots 2 | . . 2 Rammed . | . . . Targets Rammed . | . . . Kicked . | . . . Crushed . | . . . Highest Temperature 25 | . 12 25 Average Temperature 7 | . 7 7 Received Heat Transfer 279 | . 66 213 Siege Activations . | . . . Martial Activations . | . . . Shielding Activations . | . . . Robots Disrupted . | . . . Combat Hostiles . | . . . Robots Corrupted . | . . . Combat Hostiles . | . . . Parts Fried . | . . . Impact Corruptions . | . . . Robots Melted . | . . . Combat Hostiles . | . . . Parts Melted . | . . . Heat Transferred . | . . . Parts Sabotaged . | . . . Parts Stolen . | . . . Parts Stripped . | . . . Power Chain Reactions . | . . . Alert | -11 -10 -10 ------- Run | Yrd Mat Min Maximum Alert Level 1 | . . 1 Low Security (%) 99 | 100 100 98 Level 1 . | . . 1 Level 2 . | . . . Level 3 . | . . . Level 4 . | . . . Level 5 . | . . . High Security . | . . . Max Security . | . . . Peak Influence 206 | . 105 206 Initial 25 | . . 25 Average 68 | . 52 78 Influence Increases 604 | . 138 466 Destroy 0b10 Robot/C 420 | . 100 320 Destroy 0b10 Robot/NC 5 | . . 5 Destroy Leader 50 | . 20 30 Successful Hack 3 | . 3 . Disable Machine 30 | . . 30 Destroy Structure 36 | . . 36 Lose Combat Pursuer 60 | . 15 45 Influence Decreases 508 | . 73 435 Entered New Map 40 | . . 40 Time Decay 447 | . 73 374 Lost Part 21 | . . 21 Squads Dispatched 2 | . 2 . Investigation . | . . . Extermination . | . . . Reinforcement 2 | . 2 . Assault . | . . . Garrison . | . . . Intercept . | . . . Searches Triggered . | . . . Construction Impeded . | . . . Haulers Reinforced . | . . . Active Scanning Responses . | . . . Cargo Convoy Interrupts . | . . . Stealth | -11 -10 -10 --------- Run | Yrd Mat Min Distress Signals 2 | . 1 1 Communications Jammed . | . . . Distress Signals . | . . . Times Spotted 34 | . 12 22 Peak Tracking Total 7 | . 5 7 Tactical Retreats 4 | . 1 3 Traps | -11 -10 -10 ------- Run | Yrd Mat Min Traps Triggered . | . . . Indirectly . | . . . Trap Hack Attempts . | . . . Triggered . | . . . Disarmed . | . . . Reprogrammed . | . . . Reused . | . . . Traps Extracted . | . . . Installed . | . . . Triggered . | . . . Machines | -11 -10 -10 ---------- Run | Yrd Mat Min Machines Disabled 2 | . . 2 Max in Single Turn 2 | . . 2 Machines Repaired . | . . . Machines Dismantled . | . . . Machines Sabotaged . | . . . Overloaded Fab Kills . | . . . Hacking | -11 -10 -10 --------- Run | Yrd Mat Min Machines Accessed 1 | . 1 . Terminals 1 | . 1 . Fabricators . | . . . Repair Stations . | . . . Recycling Units . | . . . Scanalyzers . | . . . Garrison Access . | . . . Total Hacks 1 | . 1 . Successful 1 | . 1 . Failed . | . . . Catastrophic . | . . . Database Lockouts . | . . . Manual . | . . . Terminals 1 | . 1 . Fabricators . | . . . Repair Stations . | . . . Recycling Units . | . . . Scanalyzers . | . . . Garrison Access . | . . . Terminal Hacks 1 | . 1 . Maintenance Status 1 | . 1 . Fabricator Hacks . | . . . Repair Station Hacks . | . . . Recycling Unit Hacks . | . . . Scanalyzer . | . . . Garrison Access Hacks . | . . . Unauthorized Hacks . | . . . Terminals . | . . . Fabricators . | . . . Repair Stations . | . . . Recycling Units . | . . . Scanalyzers . | . . . Garrison Access . | . . . Data Cores Recovered . | . . . Used . | . . . Hacking Detections . | . . . Full Trace Events . | . . . Feedback Events . | . . . Feedback Blocked . | . . . Robot Schematics Acquired . | . . . Robots Built . | . . . Authchips . | . . . Time . | . . . Total Robot Build Rating . | . . . Part Schematics Acquired . | . . . Parts Built . | . . . Authchips . | . . . Time . | . . . Total Part Build Rating . | . . . Parts Repaired . | . . . Time . | . . . Parts Recycled . | . . . Recycled Matter . | . . . Retrieved Matter . | . . . Retrieved Components . | . . . Parts Scanalyzed . | . . . Part Schematics Acquired . | . . . Parts Damaged . | . . . Bothacking | -11 -10 -10 ------------ Run | Yrd Mat Min Used RIF Installer . | . . . Robots Hacked . | . . . Non-combat . | . . . Combat . | . . . Robot Hacks Applied . | . . . Relay Couplers Released . | . . . Fabnet Peak Effective % . | . . . Robots Rewired . | . . . Allies Hacked . | . . . Hacks Repelled . | . . . Allies | -11 -10 -10 -------- Run | Yrd Mat Min Total Allies . | . . . Largest Group . | . . . Highest-Rated Group . | . . . Highest-Rated Ally . | . . . Total Orders . | . . . Ally Attacks . | . . . Total Damage . | . . . Kills . | . . . Allies Corrupted . | . . . Allies Melted . | . . . Intel | -11 -10 -10 ------- Run | Yrd Mat Min Active Infowar (turns) . | . . . Robot Analysis Total . | . . . Derelict Logs Recovered 1 | . . 1 Drone Launches . | . . . Drone Recoveries . | . . . Exploration | -11 -10 -10 ------------- Run | Yrd Mat Min Turns Passed 1167 | 75 219 873 Spaces Moved 427 | 43 100 284 Core 5 | 3 . 2 Treads 411 | 40 100 271 Legs . | . . . Wheels . | . . . Hover . | . . . Flight 11 | . . 11 Fastest Speed 50 | 50 160 160 Average Speed 164 | 152 160 168 Slowest Speed 600 | 160 160 600 Overloaded Moves . | . . . Propulsion Burnouts . | . . . Robots Hopped . | . . . Potential Cave-ins . | . . . Cave-ins Triggered . | . . . Exploration Rate (%) 34 | 4 29 69 Regions Visited 2 Branch Regions 1 Pre-discovered Areas 1 | . . 1 Known Exits Taken . | . . . Unknown Exits Taken 2 | 1 1 . Scrap Searched . | . . . Spaces Dug . | . . . Terrain Destroyed 46 | . . 46 Melee . | . . . Projectile . | . . . AOE 46 | . . 46 Terrain Rammed . | . . . Walls Destroyed . | . . . Machines Disabled . | . . . Actions | -11 -10 -10 --------- Run | Yrd Mat Min Total 792 | 53 131 608 Wait 237 | . 6 231 Move 425 | 42 99 284 Hop . | . . . Pick Up 23 | 6 4 13 Fast Attach 1 | . . 1 Attach 11 | 5 1 5 Detach 2 | . . 2 Swap 8 | . 2 6 Drop 7 | . 1 6 Fire 60 | . 18 42 Melee 18 | . . 18 Ram . | . . . Kick . | . . . Crush . | . . . Escape Stasis . | . . . Rewire . | . . . Trap . | . . . Miscellaneous . | . . . Route ------- -11/Scrapyard -10/Materials -10/Mines (discovered 1 exit: [*Mat]) History --------- Turn | Location | Event 48 | -11/Scrapyard | Discovered new exit (range 12) 76 | -11/Scrapyard | Entered Materials 266 | -10/Materials | Discovered new exit (range 13) 295 | -10/Materials | Entered Mines 303 | -10/Mines | Build established: Mutant 348 | -10/Mines | Received a Rocket Launcher from a helpful Derelict 397 | -10/Mines | Excavation squad dispatched 397 | -10/Mines | A large section of the Mines collapsed 647 | -10/Mines | Excavation squad dispatched 716 | -10/Mines | A weapon hastily lodged in a ceiling crevice suddenly fell to the ground 862 | -10/Mines | Learned location of Storage (-9) 897 | -10/Mines | Excavation squad dispatched 1069 | -10/Mines | Core integrity fell below 50% 1109 | -10/Mines | Core integrity fell below 20% 1110 | -10/Mines | Lost 3 parts (2n1u) 1147 | -10/Mines | Excavation squad dispatched 1150 | -10/Mines | Discovered new exit (range 9) 1168 | -10/Mines | Destroyed by G-47 Trooper with Particle Gun Last Messages --------------- 01070_ Lgt. Treads destroyed. 01079_ Lgt. Armor Plating destroyed. 01079_ S-10 Pest destroyed. 01081_ Acquired 15 matter. 01092_ S-10 Pest destroyed. 01099_ Acquired Flight Unit. 01111_ Lgt. Assault Rifle destroyed. 01115_ K-01 Serf collects debris. 01125_ S-10 Pest destroyed. 01128_ Acquired 12 matter. 01128_ K-01 Serf collects debris. 01147_ ALERT: Derelict activity in mines confirmed. Dispatching additional escorted excavation squad. 01150_ EXIT=FOUND 01151_ A derelict emerges from the shadows: "Quick, help me dispose of these Unaware!" 01160_ G-34 Mercenary destroyed. 01165_ G-47 Trooper: "SECOND INTRUDER APPROACHING. ELIMINATE." Map ----- +----------------------------------------------------+ | | | | | | | | | | | | | | | | | | | ????????????????????????????????????????????? | | ????????????????????????????????????????????? | | ###?????????????????????????????????????????? | | ##????????????????????????????????????????? | | #????????????????????????????????????????? | | ###############??????????????????????????? | | #??????????????????????????? | | #?????????????##???????????? | | ############# #???????????? ##??????????? | | ###???????????# ##??????????? < ##?????????? | | ??????????????# ##????????? ??????????? | | ??????????????# ##???????? ???????????? | | ??????????????# ####????% ????????????? | | ??????????????# #???? #?????????????? | | ?????????????## =### #??? #??????????????? | | ?????????????# ### ####g#####???????????? | | ?????????????# * =*@gg! t #???????????? | | ?????????????## #######$### #???????????? | | ??????????????# ##?????? #???????????????? | | ?????????????# ##???????? ???????????????? | | ????????????# ##????????? #??????????????? | | ????????????# #??????????? ??????????????? | | ???????????# =%* #???????????##?????????????? | | ?????????? [ ??????????????????????????? | | ????????? ??????????????????????????? | | ????????### ??????????????????????????? | | ??????????# ??????????????????????????? | | ??????????# ?????????###??????????????? | | ??????????## ### ????????? #??????????????? | | ???????????# ???#?????????# #??????????????? | | ???????????????????????????# #??????????????? | | ##?????????????????????????# #??????????????? | | ##????????????????????????# #??????????????? | | #?????????? ??????????### #???? ?????? | | #????????? ###### ##??# ????? | | #?#??????????"" = #??# ??? | | ?????????"" #### #?## ??? | | #????????????????????#= * #?# ???? | | #?????????????????????# ##?? ???? | | ###?????????????????????## ##??? ????? | | ?????????????????????????# ##????# ????? | +----------------------------------------------------+ Best States ------------- Heat Dissipation 25 Energy Generation 12 Energy Capacity 265 Matter Stores 289 Matter Capacity 300 Sight Range 16 Terrain Scan Density 10 Armor Coverage 150 Evasion (%) 40 Recoil Reduction 2 Item Schematics ----------------- None Robot Schematics ------------------ None Fabricated ------------ Nothing Repaired ---------- Nothing Alien Tech Used ----------------- None Achievements -------------- None Challenges ------------ None Game ------ Seed GravmagTachyonDiverter Manual? 0 Play Time 00:14:08 Cumulative 10.0 hours Start 2025.10.02 @ 21:44:11 End 2025.10.02 @ 21:57:49 Sessions 1 Manual Loads 0 Difficulty Rogue Special Mode None Game No. 8 Rogue 8 Adventurer 0 Explorer 0 Win Type - Total 0 Types 0/0/0/0/0/0/0/0/0/0 Lore% 5 Gallery% 12 Achievement% 14 Wizard Run 0 Options --------- Layout 1 ASCII 0 Keyboard 0 Movement Mouse Keybinds 0 Fullscreen 1 Font 32/SmallcapsGlow Map View 50x35 Zoom Use 0% Tactical HUD 1 Map Filters NONE Filters NONE Steam 1 RUN: 0f7a2175-84a1-4d28-8d3f-9e3d2d4f1159